Cogmind - Beta 13 @@@ ROGUE MODE // 2024.04.06 @ 22:24:21 Player: Gasoline_Joe Result: Destroyed by S-10 Pest with Light Assault Rifle Performance ------------- Evolutions (2) 1000 Regions Visited (4) 800 Robots Destroyed (44) 220 Value Destroyed (1085) 1085 Prototype IDs (4) 80 Alien Tech Used (0) 0 Bonus (0) 0 TOTAL SCORE: 3185 Bonus ------- None Cogmind --------- Core Integrity 0/550 Matter 21/300 Energy 100/100 System Corruption 3% Temperature Hot (215) Movement Core (200) Ox3 Location -8/Materials Parts ------- > --- POWER (1) -------- (None) > --- PROPULSION (3) --- (None) > --- UTILITY (4) ------ Medium Storage Unit > --- WEAPON (3) ------- (None) > --- INVENTORY (10) --- Ion Engine Aluminum Leg Aluminum Leg VSS Leg Medium Storage Unit Targeting Computer Improved Light Armor Plating Thief Drone Bay (3/3) Heavy Flail Peak State ------------ > --- POWER ------------ Ion Engine > --- PROPULSION ------- Aluminum Leg Aluminum Leg VSS Leg > --- UTILITY ---------- Medium Storage Unit Structural Scanner Improved Light Armor Plating Thief Drone Bay > --- WEAPON ----------- Assault Rifle Autogun Minigun > --- INVENTORY -------- Ion Engine Aluminum Leg Aluminum Leg Medium Storage Unit Seismic Detector Targeting Computer Rocket Launcher Missile Launcher Heavy Flail [Rating: 25] Favorites ----------- Power Ion Engine Engine Ion Engine Propulsion Aluminum Leg Treads Light Treads Leg Aluminum Leg Utility Medium Storage Unit Device Seismic Detector Storage Medium Storage Unit Processor Visual Processing Unit Protection Improved Light Armor Plating Weapon Assault Rifle Energy Gun Medium Laser Ballistic Gun Assault Rifle Ballistic Cannon Improved Light Cannon Launcher Rocket Launcher Impact Weapon Mace Build | -11 -10 -9 -9 -8 ------- Run | Yrd Mat Mat Min Mat Slots Evolved 4 | . . 2 . 2 Power . | . . . . . Propulsion 1 | . . 1 . . Utility 2 | . . 1 . 1 Weapon 1 | . . . . 1 Parts Attached 61 | 9 6 15 9 22 Power 4 | 1 1 1 1 . Engine 4 | 1 1 1 1 . Core . | . . . . . Reactor . | . . . . . Propulsion 13 | 2 . 3 3 5 Treads 1 | . . 1 . . Leg 12 | 2 . 2 3 5 Wheel . | . . . . . Hover . | . . . . . Flight . | . . . . . Utility 21 | 3 4 5 3 6 Device 13 | 1 2 4 3 3 Storage 5 | 2 2 1 . . Processor 1 | . . . . 1 Hackware . | . . . . . Protection 2 | . . . . 2 Artifact . | . . . . . Weapon 23 | 3 1 6 2 11 Energy Gun 2 | 2 . . . . Energy Cannon . | . . . . . Ballistic Gun 12 | 1 1 3 1 6 Ballistic Cannon 1 | . . 1 . . Launcher 6 | . . 1 1 4 Special Weapon . | . . . . . Impact Weapon 2 | . . 1 . 1 Slashing Weapon . | . . . . . Piercing Weapon . | . . . . . Special Melee Weapon . | . . . . . Unidentified Prototypes 2 | . . . 1 1 Parts Lost 14 | . 1 1 . 12 Power 2 | . 1 . . 1 Propulsion 3 | . . . . 3 Utility 3 | . . . . 3 Weapon 6 | . . 1 . 5 Highest Loss Streak 8 | . 1 1 . 8 To Critical Strikes . | . . . . . Average Slot Usage (%) 92 | . 99 99 100 80 Engine 9 | . 13 11 11 6 Treads 2 | . . 7 . . Leg 25 | . 28 25 33 21 Device 18 | . 14 21 22 18 Storage 10 | . 14 11 11 9 Energy Gun 3 | . 14 2 . . Ballistic Gun 18 | . 14 19 21 20 Naked Turns . | . . . . . Heaviest Build 35 | 13 18 23 22 35 Greatest Support 32 | 20 20 30 30 32 Greatest Overweight (x) 7 | . . . . 7 Average Overweight (x) . | . . . . . Largest Inventory Capacity 10 | 8 10 10 10 10 Average Capacity 9 | 6 8 10 10 10 Most Carried 10 | 6 8 10 10 10 Average Carried 8 | 3 7 8 9 9 Final Capacity 10 | 8 10 10 10 10 Final Carried 10 | 6 8 10 10 9 Class Distribution -------------------- 53% | Mutant 20% | Tank 19% | Scavenger-Mutant 6% | Scavenger-Skirmisher Dominant Class ---------------- Mutant | -10/Materials Mutant | -9/Materials Scavenger-Mutant | -9/Mines Tank | -8/Materials Resources | -11 -10 -9 -9 -8 ----------- Run | Yrd Mat Mat Min Mat Matter Collected 1297 | 305 112 275 151 454 Remotely . | . . . . . Salvage Created 1358 | 141 279 343 97 498 Parts 76 | 6 9 23 7 31 Haulers Intercepted 3 | . . 1 . 2 Recyclers Shooed 2 | . . . . 2 Parts Field Recycled . | . . . . . Retrieved Matter . | . . . . . Parts Self-Destructed . | . . . . . Prevented . | . . . . . Kills | -11 -10 -9 -9 -8 ------- Run | Yrd Mat Mat Min Mat Combat Hostiles Destroyed 30 | . 6 11 5 8 Melee 2 | . . 1 . 1 Guns 18 | . 6 7 2 3 AOE 10 | . . 3 3 4 Classes Destroyed 10 | 2 2 3 . 3 Worker 3 | . . . . 3 Builder 3 | . . . . 3 Tunneler 2 | 2 . . . . Hauler 3 | . . 1 . 2 Recycler 2 | 1 . . . 1 Operator 1 | . 1 . . . Swarmer 9 | . . 6 3 . Grunt 16 | . 6 3 2 5 Sentry 3 | . . 2 . 1 Hunter 2 | . . . . 2 Best Kill Streak 12 | 2 3 4 3 12 Combat Bots Only 4 | . 2 4 3 4 Max Kills in Single Turn 3 | 1 1 3 2 2 Gunslinging . | . . . . . Exploded 3 | . . 3 2 1 Melee 1 | . . 1 . 1 Uniques/NPCs Destroyed . | . . . . . Combat | -11 -10 -9 -9 -8 -------- Run | Yrd Mat Mat Min Mat Hostile Shots Fired 244 | . 38 39 21 146 Missed 76 | . 9 10 5 52 Damage Taken 2347 | . 427 342 155 1423 Core 763 | . 127 68 14 554 Absorbed by Shields 80 | . . . . 80 Core Remaining (%) 76 | 100 49 . 79 . Volleys Fired 110 | 5 29 21 7 48 Largest 3 | 2 2 2 2 3 Hottest 70 | 70 70 53 53 68 Shots Fired 220 | 8 58 40 14 100 Gun 200 | 8 58 39 12 83 Cannon . | . . . . . Launcher 20 | . . 1 2 17 Special . | . . . . . Kinetic 168 | 5 29 39 12 83 Thermal 32 | 3 29 . . . Explosive 20 | . . 1 2 17 Electromagnetic . | . . . . . Robot Hit Streak 13 | 8 13 8 5 9 Robot Miss Streak 7 | . 2 2 4 7 Penetration Max . | . . . . . Secondary Targets 2 | . . . . 2 Max Gunslinging Chain 1 | . . . . 1 Shots Hit Robots 149 | 8 48 30 6 57 Core Hits 84 | 4 18 16 7 39 Critical Kills 1 | . . 1 . . Critical Parts Destroyed 2 | . . 1 . 1 Critical Strikes 9 | 2 4 2 . 1 Burn 6 | 2 4 . . . Destroy 1 | . . . . 1 Smash 2 | . . 2 . . Melee Attacks 5 | . . 2 . 3 Impact 5 | . . 2 . 3 Slashing . | . . . . . Piercing . | . . . . . Sneak Attacks . | . . . . . Combat Hostiles . | . . . . . Follow-up Attacks . | . . . . . Damage Inflicted 3358 | 101 613 517 266 1861 Guns 1848 | 101 613 359 82 693 Cannons . | . . . . . Explosions 1357 | . . 119 184 1054 Melee 153 | . . 39 . 114 Ramming . | . . . . . Kinetic 1524 | 64 326 359 82 693 Thermal 370 | 37 287 . . 46 Explosive 1311 | . . 119 184 1008 Electromagnetic . | . . . . . Impact 153 | . . 39 . 114 Slashing . | . . . . . Piercing . | . . . . . Highest Corruption 3 | . . . . 3 Average Corruption 3 | . . . . 3 Corruption Purged . | . . . . . Corruption Blocked . | . . . . . Effects 14 | . . . . 14 Message Errors 2 | . . . . 2 Matter Fused 4 | . . . . 4 Heat Flow Errors 3 | . . . . 3 Energy Discharges 1 | . . . . 1 Parts Rejected 1 | . . . . 1 Data Loss (minor) 3 | . . . . 3 Overload Shots . | . . . . . Overflow Damage 152 | . . 17 9 126 Projectiles . | . . . . . Explosions 109 | . . . 9 100 Melee 43 | . . 17 . 26 Knockbacks 1 | . . . . 1 Impact 1 | . . . . 1 Kinetic . | . . . . . Secondary . | . . . . . Self-Inflicted Damage 181 | . . . . 181 Shots 3 | . . . . 3 Rammed . | . . . . . Targets Rammed . | . . . . . Kicked . | . . . . . Crushed . | . . . . . Highest Temperature 297 | 18 297 17 7 262 Average Temperature 85 | 9 124 7 5 62 Received Heat Transfer 957 | . 273 126 39 519 Effects 2 | . 2 . . . Energy Bleed 1 | . 1 . . . Interference 1 | . 1 . . . Siege Activations . | . . . . . Robots Corrupted . | . . . . . Combat Hostiles . | . . . . . Parts Fried . | . . . . . Impact Corruptions 2 | . . 1 . 1 Robots Melted . | . . . . . Combat Hostiles . | . . . . . Parts Melted 5 | 1 4 . . . Heat Transferred 1456 | 259 1147 . . 50 Parts Sabotaged . | . . . . . Parts Stolen . | . . . . . Parts Stripped . | . . . . . Power Chain Reactions . | . . . . . Alert | -11 -10 -9 -9 -8 ------- Run | Yrd Mat Mat Min Mat Peak Influence 310 | 15 197 310 254 295 Initial 120 | . 9 83 120 98 Average 127 | 5 125 125 207 124 Maximum Alert Level 1 | . . 1 1 1 Low Security (%) 78 | 100 100 79 4 84 Level 1 21 | . . 20 95 15 Level 2 . | . . . . . Level 3 . | . . . . . Level 4 . | . . . . . Level 5 . | . . . . . High Security . | . . . . . Max Security . | . . . . . Squads Dispatched 4 | . . 3 . 1 Investigation . | . . . . . Extermination . | . . . . . Reinforcement 4 | . . 3 . 1 Assault . | . . . . . Garrison . | . . . . . Intercept . | . . . . . Searches Triggered . | . . . . . Construction Impeded 1 | . . . . 1 Haulers Reinforced . | . . . . . Active Scanning Responses . | . . . . . Cargo Convoy Interrupts . | . . . . . Stealth | -11 -10 -9 -9 -8 --------- Run | Yrd Mat Mat Min Mat Distress Signals 3 | . . 1 . 2 Communications Jammed . | . . . . . Distress Signals . | . . . . . Times Spotted 56 | . 8 17 5 26 Peak Tracking Total 9 | . 4 5 3 9 Tactical Retreats 3 | . . 1 . 2 Traps | -11 -10 -9 -9 -8 ------- Run | Yrd Mat Mat Min Mat Traps Triggered 2 | . . . . 2 Indirectly . | . . . . . Trap Hack Attempts . | . . . . . Triggered . | . . . . . Disarmed . | . . . . . Reprogrammed . | . . . . . Reused . | . . . . . Traps Extracted . | . . . . . Installed . | . . . . . Triggered . | . . . . . Machines | -11 -10 -9 -9 -8 ---------- Run | Yrd Mat Mat Min Mat Machines Disabled 2 | . . . . 2 Max in Single Turn 1 | . . . . 1 Machines Repaired . | . . . . . Machines Dismantled . | . . . . . Machines Sabotaged . | . . . . . Overloaded Fab Kills . | . . . . . Hacking | -11 -10 -9 -9 -8 --------- Run | Yrd Mat Mat Min Mat Machines Accessed 4 | . 2 1 1 . Terminals 3 | . 2 1 . . Fabricators . | . . . . . Repair Stations . | . . . . . Recycling Units . | . . . . . Scanalyzers . | . . . . . Garrison Access . | . . . . . Total Hacks 10 | . 5 4 1 . Successful 5 | . 3 1 1 . Failed 5 | . 2 3 . . Catastrophic 1 | . 1 . . . Database Lockouts . | . . . . . Manual 7 | . 4 3 . . Terminals 9 | . 5 4 . . Fabricators . | . . . . . Repair Stations . | . . . . . Recycling Units . | . . . . . Scanalyzers . | . . . . . Garrison Access . | . . . . . Terminal Hacks 5 | . 3 1 1 . Record 1 | . . 1 . . Prototype ID Bank 1 | . 1 . . . Open Door 1 | . . . 1 . Branch Access Points 1 | . 1 . . . Emergency Access Points 1 | . 1 . . . Fabricator Hacks . | . . . . . Repair Station Hacks . | . . . . . Recycling Unit Hacks . | . . . . . Scanalyzer . | . . . . . Garrison Access Hacks . | . . . . . Unauthorized Hacks . | . . . . . Terminals . | . . . . . Fabricators . | . . . . . Repair Stations . | . . . . . Recycling Units . | . . . . . Scanalyzers . | . . . . . Garrison Access . | . . . . . Data Cores Recovered 1 | . 1 . . . Used . | . . . . . Hacking Detections 3 | . 2 1 . . Full Trace Events 1 | . 1 . . . Feedback Events . | . . . . . Feedback Blocked . | . . . . . Robot Schematics Acquired . | . . . . . Robots Built . | . . . . . Authchips . | . . . . . Time . | . . . . . Total Robot Build Rating . | . . . . . Part Schematics Acquired . | . . . . . Parts Built . | . . . . . Authchips . | . . . . . Time . | . . . . . Total Part Build Rating . | . . . . . Parts Repaired . | . . . . . Time . | . . . . . Parts Recycled . | . . . . . Recycled Matter . | . . . . . Retrieved Matter . | . . . . . Retrieved Components . | . . . . . Parts Scanalyzed . | . . . . . Part Schematics Acquired . | . . . . . Parts Damaged . | . . . . . Bothacking | -11 -10 -9 -9 -8 ------------ Run | Yrd Mat Mat Min Mat Used RIF Installer . | . . . . . Robots Hacked . | . . . . . Non-combat . | . . . . . Combat . | . . . . . Robot Hacks Applied . | . . . . . Relay Couplers Released . | . . . . . Fabnet Peak Effective % . | . . . . . Robots Rewired . | . . . . . Allies Hacked . | . . . . . Hacks Repelled . | . . . . . Allies | -11 -10 -9 -9 -8 -------- Run | Yrd Mat Mat Min Mat Total Allies . | . . . . . Largest Group . | . . . . . Highest-Rated Group . | . . . . . Highest-Rated Ally . | . . . . . Total Orders 2 | . . . . 2 EXPLORE 1 | . . . . 1 RETURN 1 | . . . . 1 Ally Attacks . | . . . . . Total Damage . | . . . . . Kills . | . . . . . Allies Corrupted . | . . . . . Allies Melted . | . . . . . Intel | -11 -10 -9 -9 -8 ------- Run | Yrd Mat Mat Min Mat Robot Analysis Total . | . . . . . Derelict Logs Recovered . | . . . . . Drone Launches 1 | . . . . 1 Drone Recoveries 1 | . . . . 1 Exploration | -11 -10 -9 -9 -8 ------------- Run | Yrd Mat Mat Min Mat Turns Passed 2188 | 97 381 644 221 845 Spaces Moved 1067 | 55 187 210 140 475 Core 41 | 7 . . . 34 Treads . | . . . . . Legs 1026 | 48 187 210 140 441 Wheels . | . . . . . Hover . | . . . . . Flight . | . . . . . Fastest Speed 50 | 50 120 120 120 90 Average Speed 123 | 111 120 120 120 128 Slowest Speed 400 | 120 120 120 120 400 Overloaded Moves . | . . . . . Propulsion Burnouts . | . . . . . Robots Hopped . | . . . . . Cave-ins Triggered . | . . . . . Exploration Rate (%) 24 | 4 29 17 36 38 Regions Visited 4 Branch Regions 1 Pre-discovered Areas . | . . . . . Known Exits Taken . | . . . . . Unknown Exits Taken 4 | 1 1 1 1 . Scrap Searched . | . . . . . Spaces Dug . | . . . . . Terrain Destroyed 161 | . . 8 14 139 Melee . | . . . . . Projectile . | . . . . . AOE 161 | . . 8 14 139 Terrain Rammed . | . . . . . Walls Destroyed . | . . . . . Machines Disabled . | . . . . . Actions | -11 -10 -9 -9 -8 --------- Run | Yrd Mat Mat Min Mat Total 1739 | 83 287 558 181 630 Wait 429 | 1 53 296 14 65 Move 1063 | 54 186 209 139 475 Hop . | . . . . . Pick Up 39 | 13 7 8 5 6 Fast Attach 12 | . . 1 . 11 Attach 20 | 8 1 5 2 4 Detach 3 | 1 . 1 . 1 Swap 29 | 1 5 9 7 7 Drop 29 | . 6 6 7 10 Fire 110 | 5 29 21 7 48 Melee 5 | . . 2 . 3 Ram . | . . . . . Kick . | . . . . . Crush . | . . . . . Escape Stasis . | . . . . . Rewire . | . . . . . Trap . | . . . . . Miscellaneous . | . . . . . Route ------- -11/Scrapyard -10/Materials (discovered 3 exits: *Mat / *Min x2) -9/Materials -9/Mines -8/Materials History --------- Turn | Location | Event 3 | -11/Scrapyard | Discovered new exit (range 15) 98 | -11/Scrapyard | Entered Materials 115 | -10/Materials | Discovered new exit (range 10) 171 | -10/Materials | Identified exit to Mines 306 | -10/Materials | Build established: Mutant 372 | -10/Materials | Core integrity fell below 50% 453 | -10/Materials | Discovered new exit (range 10) 479 | -10/Materials | Entered another Materials area 479 | -9/Materials | Evolved 2 slots: Propulsion x1, Utility x1 1043 | -9/Materials | Discovered new exit (range 10) 1123 | -9/Materials | Entered Mines 1161 | -9/Mines | Found the Drone Emporium 1173 | -9/Mines | Found Prototype Device 1175 | -9/Mines | Identified Thief Drone Bay 1178 | -9/Mines | Met a Derelict bent on vengeance 1217 | -9/Mines | Build established: Scavenger-Mutant 1285 | -9/Mines | Discovered new exit (range 9) 1297 | -9/Mines | Received a Rocket Launcher from a helpful Derelict 1344 | -9/Mines | Entered Materials 1344 | -8/Materials | Evolved 2 slots: Utility x1, Weapon x1 1828 | -8/Materials | Build established: Tank 2060 | -8/Materials | Lost 8 parts (1p2n2u3w) 2135 | -8/Materials | Core integrity fell below 50% 2156 | -8/Materials | Lost 3 parts (1n1u1w) 2186 | -8/Materials | Core integrity fell below 20% 2189 | -8/Materials | Destroyed by S-10 Pest with Light Assault Rifle Last Messages --------------- 02114_ U-05 Engineer builds a Wall. 02114_ K-01 Serf collects debris. 02114_ U-05 Engineer lays Concrete. 02118_ K-01 Serf collects debris. 02118_ U-05 Engineer lays Concrete. 02119_ U-05 Engineer builds a Door. 02119_ K-01 Serf collects debris. 02120_ Seismic Detector destroyed. 02120_ U-05 Engineer lays Concrete. 02122_ K-01 Serf collects debris. 02123_ U-05 Engineer lays Concrete. 02125_ VSS Leg destroyed. 02127_ K-01 Serf collects debris. 02136_ System corrupted: Component data lost. 02170_ Electrolysis Chamber disabled. 02182_ Critical hit (Burn: +37). 02186_ System corrupted: Heat flow error (+281). 02187_ Neutrino Reactor explodes. 02187_ S-10 Pest suffers critical hit (Burn). 02189_ Critical hit (Burn: +37). Map ----- +----------------------------------------------------+ | ?????????????????## #### ##?????????? | | ?????????????????## # #### #### #???? | | ??????????????????# # | | ??????????????????# # | | ??????????????????# # | | ??????????????????# # #######+####### ##### | | ??????????????????#! # #??????????????? #???? | | ??????????????????# # #???????????????? #???? | | ??????????????????#/#### #?????????????????#???? | | ??????????????????# #??# #?????????????????????? | | ????????????####### #### #?????????????????????? | | ????????????+ #?????????????????????? | | ????????????####### #### #?????????????????????? | | ??????????????????# #??# #?????????????????????? | | ??????????????????# #??# #?????????????????????? | | ??????????????????# #??# #?????????????????????? | | ????????????????###/#### ###########???????????? | | ????????????????# # ??????????? | | ????????????????# """ # ????H?????? | | ????????????????# """ # ????????????? | | ????????????????# "" / ##?????????????? | | ????????????????# #g * T#?????????????? | | ????????????????#! # #??????????????? | | ???????????#############s g #??????????????? | | ?????????? s #??????????????? | | ?????????? s@ #??????????????? | | ????????????""" s #??????????????? | | ?????????????"" #####+#####w^ #??????????????? | | ?????????????"" ???? ???? #??????????????? | | ????????????? ??? """ """ ??? #??????????????? | | ???????????? ????# """ """ #???#??????????????? | | ????????????? ?????# """ """ #??????????????????? | | ????????????????????# #??????????????????? | | ????????????????????# /// #??????????????????? | | ????????????????????? /// ???????????????????? | | ?????????????????????? // ????????????????????? | | ???????????????????????### #?????????????????????? | | ??????????????????????????##?????????????????????? | | ?????????????????????????????????????????????????? | | ?????????????????????????????????????????????????? | | ?????????????????????????????????????????????????? | | ?????????????????????????????????????????????????? | | ?????????????????????????????????????????????????? | | ?????????????????????????????????????????????????? | | ?????????????????????????????????????????????????? | | ?????????????????????????????????????????????????? | | ?????????????????????????????????????????????????? | | ?????????????????????????????????????????????????? | | ?????????????????????????????????????????????????? | | ?????????????????????????????????????????????????? | +----------------------------------------------------+ Best States ------------- Heat Dissipation 39 Energy Generation 10 Energy Capacity 250 Matter Stores 300 Matter Capacity 300 Sight Range 18 Terrain Scan Range 16 Terrain Scan Density 10 Armor Coverage 150 Resistance: KI 20 Evasion (%) 57 Recoil Reduction 1 Item Schematics ----------------- None Robot Schematics ------------------ None Fabricated ------------ Nothing Alien Tech Used ----------------- None Achievements -------------- None Challenges ------------ None Game ------ Seed UltimateLegBuckler Manual? 0 Play Time 00:45:33 Cumulative 5.8 hours Start 2024.04.06 @ 21:24:00 End 2024.04.06 @ 22:24:21 Sessions 7 Manual Loads 0 Difficulty Rogue Special Mode None Game No. 5 Rogue 5 Adventurer 0 Explorer 0 Win Type - Total 0 Types 0/0/0/0/0/0/0/0/0 Lore% 6 Gallery% 8 Achievement% 12 Wizard Run 0 Options --------- Layout 1 ASCII 0 Keyboard 0 Movement Mouse Keybinds 0 Fullscreen 2 Font 24/Smallcaps Map View 50x35 Zoom Use 0% Tactical HUD 1 Map Filters NONE Filters NONE Steam 1 RUN: 709a72ee-b410-4e9f-bbc4-09bb4d214dca